Cogmind - Beta 16 @@@ ROGUE MODE // 2025.10.28 @ 11:18:24 Player: Minty Result: Self-destructed Performance ------------- Evolutions (8) 4000 Regions Visited (11) 2200 Robots Destroyed (54) 270 Value Destroyed (2032) 2032 Prototype IDs (19) 380 Alien Tech Used (0) 0 Bonus (1000) 1000 TOTAL SCORE: 9882 Bonus ------- Entered Garrisons 200 Registered with UFD 300 Met Optimus in HQ 500 Cogmind --------- Core Integrity 411/1450 Matter 119/300 Energy 97/100 System Corruption 16% Temperature Cool (0) Movement Treading (160) Location -2/Garrison Parts ------- > --- POWER (2) -------- (None) > --- PROPULSION (7) --- High-density Centrium Heavy Treads High-density Centrium Heavy Treads > --- UTILITY (11) ----- Experimental Signal Interpreter A0-MCA's Component Scanner > --- WEAPON (3) ------- (None) > --- INVENTORY (5) ---- Advanced Energy Well (500) Experimental Energy Well (600) Experimental Energy Well (600) Advanced Thermal Shield Portable AFG (100) Peak State ------------ > --- POWER ------------ Particle Reactor Micro Antimatter Reactor > --- PROPULSION ------- Advanced Medium Treads Advanced Medium Treads Advanced Medium Treads Centrium Leg Compact Wheel Compact Wheel > --- UTILITY ---------- Advanced Heat Sink Advanced Heat Sink Advanced Heat Sink Small Storage Unit Advanced Energy Well Experimental Energy Well Experimental Energy Well Experimental Signal Interpreter Surveybot 17 Chip Hacking Suite A0-MCA's Component Scanner > --- WEAPON ----------- Disintegrator Enhanced Hardcell Cannon > --- INVENTORY -------- Advanced Particle Charger Advanced Thermal Shield Enhanced Nova Cannon Portable AFG [Rating: 155] Favorites ----------- Power Subdweller Power Source Engine Subdweller Power Source Power Core Fission Core Reactor Particle Reactor Propulsion Advanced Medium Treads Treads Advanced Medium Treads Leg Aluminum Leg Wheel Compact Wheel Hover Unit Backup Propulsion VII Flight Unit Impulse Thruster Array Utility Small Storage Unit Device Advanced Heat Sink Storage Small Storage Unit Processor A0-MCA's Component Scanner Hackware Hacking Suite Weapon Barrage Gun Energy Gun Medium Laser Energy Cannon Phase Cannon Ballistic Gun Barrage Gun Ballistic Cannon Enhanced Hardcell Cannon Launcher Missile Launcher Slashing Weapon Power Sword Build | -11 -10 -10 -10 -7 -7 -5 -4 -3 -3 -2 -2 ------- Run | Yrd Mat Min Sub Rec Scr Fac Fac Res Tes Res Gar Slots Evolved 16 | . . . . . . 10 2 2 . 2 . Power 1 | . . . . . . 1 . . . . . Propulsion 5 | . . . . . . 4 1 . . . . Utility 9 | . . . . . . 4 1 2 . 2 . Weapon 1 | . . . . . . 1 . . . . . Parts Attached 87 | . 5 3 8 . 4 10 11 12 12 22 . Power 9 | . 1 1 2 . . . 1 1 1 2 . Engine 4 | . 1 1 2 . . . . . . . . Core 1 | . . . . . . . 1 . . . . Reactor 4 | . . . . . . . . 1 1 2 . Propulsion 30 | . . . 5 . 1 2 6 5 1 10 . Treads 7 | . . . 2 . . . . . . 5 . Leg 4 | . . . 2 . . 1 . . . 1 . Wheel 6 | . . . 1 . 1 1 . . . 3 . Hover 1 | . . . . . . . . 1 . . . Flight 12 | . . . . . . . 6 4 1 1 . Utility 32 | . 1 1 . . 1 7 4 6 5 7 . Device 12 | . . . . . 1 . 1 3 1 6 . Storage 4 | . . . . . . . 1 . 3 . . Processor 9 | . 1 1 . . . 3 1 2 1 . . Hackware 7 | . . . . . . 4 1 1 . 1 . Protection . | . . . . . . . . . . . . Artifact . | . . . . . . . . . . . . Weapon 16 | . 3 1 1 . 2 1 . . 5 3 . Energy Gun 5 | . 2 . 1 . . . . . 2 . . Energy Cannon 5 | . . 1 . . . 1 . . 2 1 . Ballistic Gun 2 | . . . . . 1 . . . 1 . . Ballistic Cannon 1 | . . . . . . . . . . 1 . Launcher 2 | . 1 . . . 1 . . . . . . Special Weapon . | . . . . . . . . . . . . Impact Weapon . | . . . . . . . . . . . . Slashing Weapon 1 | . . . . . . . . . . 1 . Piercing Weapon . | . . . . . . . . . . . . Special Melee Weapon . | . . . . . . . . . . . . Unidentified Prototypes . | . . . . . . . . . . . . Parts Lost 62 | . 2 1 7 . . 4 3 14 8 21 2 Power 11 | . 1 1 2 . . 1 . 2 2 2 . Propulsion 22 | . . . 1 . . 1 3 6 4 6 1 Utility 16 | . . . . . . . . 6 . 10 . Weapon 13 | . 1 . 4 . . 2 . . 2 3 1 Highest Loss Streak 19 | . 2 1 4 . . 2 2 12 6 19 1 To Critical Strikes . | . . . . . . . . . . . . Average Backups 5 | . 5 4 6 6 7 3 4 4 4 5 4 Power . | . . . . . . . . . . . . Propulsion 1 | . 4 4 3 4 3 . . . . . . Utility 2 | . . . . 2 3 3 3 3 3 4 4 Weapon . | . 1 . 1 . . . . . 1 . . Tool/Special . | . . . . . . . . . . . . Unused Backups 9 | . 4 . . . . 1 2 . . 1 1 Power . | . . . . . . . . . . . . Propulsion 1 | . . . . . . 1 . . . . . Utility 4 | . . . . . . . 2 . . 1 1 Weapon 4 | . 4 . . . . . . . . . . Tool/Special . | . . . . . . . . . . . . Average Slot Usage (%) 77 | . 90 91 93 71 92 70 62 55 71 75 24 Engine 6 | . 14 13 13 14 14 4 . . . . . Reactor 1 | . . . . . . . . 1 3 3 . Treads 3 | . . . 6 . . . . . . 11 8 Leg 8 | . 28 28 19 14 1 1 3 . . 2 . Wheel 6 | . . . 1 14 26 13 6 . . 2 . Flight 3 | . . . . . . . 8 12 17 3 1 Device 5 | . . . . . 5 5 7 7 3 14 1 Storage 7 | . 14 14 14 14 14 5 1 . 4 4 . Processor 12 | . 5 14 14 14 8 12 12 12 16 15 8 Hackware 5 | . . . . . . 9 12 15 14 8 . Energy Gun 5 | . 23 14 14 . . . . . 5 . . Energy Cannon 2 | . . . 4 . . 4 4 . . 3 . Ballistic Gun 2 | . 4 . . . 13 4 . . 1 . . Launcher 2 | . . 6 3 . 8 2 . . . . . Peak Build Rating 155 | . 7 7 10 10 18 49 80 102 151 155 87 Average Rating 53 | . 6 6 8 10 14 45 58 71 125 118 73 On Entrance 35 | 6 6 6 7 10 10 18 44 71 102 63 87 Avg Prop Armor Cover (%) 11 | . . . 16 16 14 5 9 10 . 9 41 Naked Turns . | . . . . . . . . . . . . Heaviest Build 66 | 11 12 15 14 10 20 28 24 31 49 66 4 Greatest Support 180 | 20 20 20 40 10 26 34 32 56 62 90 180 Greatest Overweight (x) 3 | . . . . . 1 1 1 . . 3 . Average Overweight (x) . | . . . . . . . . . . . . Largest Inventory Capacity 8 | . 8 8 8 8 8 8 8 5 8 8 5 Average Capacity 7 | . 8 8 8 8 8 8 6 5 7 7 5 Most Carried 8 | . 7 5 8 6 8 8 5 5 8 8 5 Average Carried 6 | . 5 4 6 6 7 5 4 3 6 7 5 Final Capacity 8 | 8 8 8 8 8 8 8 5 5 8 5 5 Final Carried 8 | 6 5 5 6 6 8 4 5 5 6 5 5 Class Distribution -------------------- 49% | Mutant 20% | Hacker-Mutant 11% | Scavenger-Skirmisher 5% | Hacker-Skirmisher 4% | Hacker-Scout 3% | Scavenger-Mutant Dominant Class ---------------- Mutant | -10/Materials Mutant | -10/Mines Mutant | -10/Subcaves Mutant | -7/Recycling Mutant | -7/Scraptown Hacker-Mutant | -5/Factory Hacker-Mutant | -4/Factory Hacker-Scout | -3/Research Hacker-Mutant | -3/Testing Scavenger-Skirmisher | -2/Research Mutant | -2/Garrison Resources | -11 -10 -10 -10 -7 -7 -5 -4 -3 -3 -2 -2 ----------- Run | Yrd Mat Min Sub Rec Scr Fac Fac Res Tes Res Gar Matter Collected 1221 | 200 30 100 152 . 54 131 . . 116 438 . Remotely . | . . . . . . . . . . . . Salvage Created 2027 | . 358 34 200 . . 483 43 . 296 613 . Parts 114 | . 24 1 13 . . 14 4 . 21 37 . Haulers Intercepted 1 | . . . . . . 1 . . . . . Recyclers Shooed 3 | . 2 . . . . . . . . 1 . Parts Field Recycled . | . . . . . . . . . . . . Retrieved Matter . | . . . . . . . . . . . . Parts Self-Destructed 3 | . . . 3 . . . . . . . . Prevented 2 | . . . 2 . . . . . . . . Parts Restored . | . . . . . . . . . . . . Kills | -11 -10 -10 -10 -7 -7 -5 -4 -3 -3 -2 -2 ------- Run | Yrd Mat Min Sub Rec Scr Fac Fac Res Tes Res Gar Combat Hostiles Destroyed 46 | . 11 4 8 . . 7 4 . 5 7 . Guns 12 | . 8 . 2 . . 2 . . . . . Cannons 9 | . . . . . . 1 . . 2 6 . AOE 24 | . 3 4 6 . . 4 4 . 3 . . Classes Destroyed 13 | . 4 1 2 . . 4 . . 2 . . Worker 1 | . . . . . . . . . 1 . . Tunneler 1 | . 1 . . . . . . . . . . Hauler 1 | . . . . . . 1 . . . . . Recycler 4 | . . . . . . 2 . . 1 1 . Mechanic 1 | . 1 . . . . . . . . . . Operator 2 | . . . . . . 1 . . 1 . . Swarmer 21 | . 6 . 4 . . 4 4 . 3 . . Grunt 11 | . 5 2 . . . 2 . . 1 1 . Brawler 1 | . . . . . . 1 . . . . . Sentry 3 | . . . 1 . . . . . . 2 . Programmer 5 | . . . . . . . . . 1 4 . Subdweller 3 | . . . 3 . . . . . . . . Assembled 2 | . . 2 . . . . . . . . . Best Kill Streak 5 | . 4 2 3 . . 5 4 . 5 2 . Combat Bots Only 5 | . 3 2 3 . . 4 4 . 5 2 . Max Kills in Single Turn 4 | . 2 1 2 . . 4 4 . 2 1 . Gunslinging . | . . . . . . . . . . . . Exploded 4 | . 2 1 2 . . 2 4 . 1 . . Melee . | . . . . . . . . . . . . Uniques/NPCs Destroyed . | . . . . . . . . . . . . Combat | -11 -10 -10 -10 -7 -7 -5 -4 -3 -3 -2 -2 -------- Run | Yrd Mat Min Sub Rec Scr Fac Fac Res Tes Res Gar Hostile Shots Fired 833 | . 33 16 70 . . 50 33 152 138 219 122 Missed 326 | . 11 7 22 . . 25 18 75 62 66 40 Hits 507 | . 22 9 48 . . 25 15 77 76 153 82 Melee 2 | . . 2 . . . . . . . . . Projectile 505 | . 22 7 48 . . 25 15 77 76 153 82 Critical Strikes 15 | . 1 . 2 . . 1 . 1 2 7 1 Part Disruptions 1 | . . . . . . . . 1 . . . Damage Taken 10622 | . 301 205 572 . . 486 247 1599 1890 3475 1847 Core 2601 | . 99 20 115 . . 131 22 649 526 731 308 Absorbed by Shields 184 | . . . . . . . . 149 . . 35 Core Remaining (%) 59 | 100 . . . . 6 86 98 . 9 . . Volleys Fired 113 | . 22 5 19 . . 11 4 . 18 34 . Largest 2 | . 2 2 2 . . 2 1 . 2 2 . Hottest 258 | . 90 80 110 . . 113 85 . 200 258 . Shots Fired 177 | . 39 10 31 . . 20 4 . 21 52 . Gun 81 | . 37 5 16 . . 9 . . 14 . . Cannon 80 | . . . 8 . . 9 4 . 7 52 . Launcher 16 | . 2 5 7 . . 2 . . . . . Special . | . . . . . . . . . . . . Kinetic 35 | . 3 . . . . 9 . . . 23 . Thermal 102 | . 17 5 17 . . 9 4 . 21 29 . Explosive 16 | . 2 5 7 . . 2 . . . . . Electromagnetic 24 | . 17 . 7 . . . . . . . . Robot Hit Streak 22 | . 7 5 21 . . 22 . . 5 6 . Robot Miss Streak 3 | . 2 1 2 . . 2 1 . 2 3 . Penetration Max . | . . . . . . . . . . . . Secondary Targets 2 | . 2 . . . . . . . . . . Max Gunslinging Chain 1 | . 1 . . . . . . . . . . Shots Hit Robots 109 | . 23 8 20 . . 12 . . 6 33 7 Core Hits 80 | . 19 6 11 . . 12 4 1 9 15 3 Critical Kills 1 | . . . . . . . . . . 1 . Critical Parts Destroyed . | . . . . . . . . . . . . Critical Strikes 6 | . 1 . . . . . . . . 1 4 Burn 1 | . 1 . . . . . . . . . . Meltdown 1 | . . . . . . . . . . 1 . Sever 4 | . . . . . . . . . . . 4 Melee Attacks 11 | . . . . . . . . . . . 11 Impact . | . . . . . . . . . . . . Slashing 11 | . . . . . . . . . . . 11 Piercing . | . . . . . . . . . . . . Sneak Attacks . | . . . . . . . . . . . . Combat Hostiles . | . . . . . . . . . . . . Follow-up Attacks . | . . . . . . . . . . . . Damage Inflicted 6432 | . 515 324 623 . . 1250 455 11 1405 1557 292 Guns 652 | . 291 38 163 . . 94 . . 66 . . Cannons 2127 | . . . 35 . . 152 . . 387 1553 . Explosions 3316 | . 196 284 425 . . 1004 455 . 952 . . Melee 291 | . . . . . . . . . . . 291 Ramming 46 | . 28 2 . . . . . 11 . 4 1 Kinetic 705 | . 27 . . . . 94 . . . 584 . Thermal 3224 | . 124 38 84 . . 873 . . 1136 969 . Explosive 1806 | . 196 284 425 . . 283 455 . 163 . . Electromagnetic 360 | . 140 . 114 . . . . . 106 . . Impact . | . . . . . . . . . . . . Slashing 291 | . . . . . . . . . . . 291 Piercing . | . . . . . . . . . . . . Highest Corruption 16 | . . . . . . . . 2 6 16 16 Average Corruption 4 | . . . . . . . . 1 4 2 16 Corruption Purged 2 | . . . . . . . . . 2 . . Corruption Blocked . | . . . . . . . . . . . . Effects 18 | . . . . . . . . 1 2 7 8 Message Errors 5 | . . . . . . . . . 1 2 2 Matter Fused 1 | . . . . . . . . . . . 1 Heat Flow Errors 3 | . . . . . . . . . . 2 1 Energy Discharges 2 | . . . . . . . . . . 2 . Parts Rejected 1 | . . . . . . . . . 1 . . Data Loss (minor) 2 | . . . . . . . . 1 . . 1 Misdirections 4 | . . . . . . . . . . 1 3 Overload Shots . | . . . . . . . . . . . . Overflow Damage 493 | . 22 . 19 . . 148 6 . 233 65 . Projectiles 72 | . . . . . . 7 . . . 65 . Explosions 421 | . 22 . 19 . . 141 6 . 233 . . Melee . | . . . . . . . . . . . . Knockbacks 5 | . 1 . . . . . . . . 4 . Impact 1 | . 1 . . . . . . . . . . Kinetic 3 | . . . . . . . . . . 3 . Secondary 1 | . . . . . . . . . . 1 . Self-Inflicted Damage 425 | . 52 61 17 . . 33 . 5 257 . . Shots 10 | . 2 2 1 . . 1 . . 4 . . Rammed 5 | . . . . . . . . 3 . 1 1 Targets Rammed 15 | . 9 1 . . . . . 3 . 1 1 Kicked 10 | . 9 1 . . . . . . . . . Crushed . | . . . . . . . . . . . . Highest Temperature 382 | . 210 75 23 . . 64 38 3 382 222 95 Average Temperature 79 | . 69 33 13 . . 31 18 3 116 72 72 Received Heat Transfer 1401 | . 147 41 159 . . 90 33 39 151 441 300 Siege Activations . | . . . . . . . . . . . . Martial Activations . | . . . . . . . . . . . . Shielding Activations . | . . . . . . . . . . . . Robots Disrupted . | . . . . . . . . . . . . Combat Hostiles . | . . . . . . . . . . . . Robots Corrupted . | . . . . . . . . . . . . Combat Hostiles . | . . . . . . . . . . . . Parts Fried 1 | . . . . . . . . . 1 . . Impact Corruptions . | . . . . . . . . . . . . Robots Melted 1 | . . . . . . . . . . 1 . Combat Hostiles 1 | . . . . . . . . . . 1 . Parts Melted 1 | . . . . . . . . . 1 . . Heat Transferred 3119 | . 444 111 222 . . 585 . . 1091 666 . Parts Sabotaged . | . . . . . . . . . . . . Parts Stolen . | . . . . . . . . . . . . Parts Stripped . | . . . . . . . . . . . . Power Chain Reactions 1 | . . . . . . . . . 1 . . Alert | -11 -10 -10 -10 -7 -7 -5 -4 -3 -3 -2 -2 ------- Run | Yrd Mat Min Sub Rec Scr Fac Fac Res Tes Res Gar Maximum Alert Level 2 | . . . . . . 1 . 1 2 1 . Low Security (%) 87 | . 100 100 . 100 . 91 100 87 89 67 100 Level 1 12 | . . . . . . 8 . 12 5 32 . Level 2 . | . . . . . . . . . 4 . . Level 3 . | . . . . . . . . . . . . Level 4 . | . . . . . . . . . . . . Level 5 . | . . . . . . . . . . . . High Security . | . . . . . . . . . . . . Max Security . | . . . . . . . . . . . . Peak Influence 477 | . 155 64 . . . 211 135 247 477 267 188 Initial 267 | . . 54 . . . . 42 48 121 267 38 Average 110 | . 74 35 . . . 135 61 79 145 158 88 Influence Increases 2520 | . 316 102 110 . . 353 182 439 546 302 170 Destroy 0b10 Robot/C 820 | . 220 40 100 . . 140 80 . 100 140 . Destroy 0b10 Robot/NC 50 | . 10 . . . . 20 . . 15 5 . Destroy Leader 162 | . 40 10 10 . . 22 10 . 30 40 . Trap Triggered on 0b10 10 | . . . . . . 10 . . . . . Successful Hack 84 | . 20 . . . . . . 34 18 12 . Disable Machine 300 | . . . . . . 105 30 . 150 15 . Anti-Garrison Action 50 | . . . . . . . . . . . 50 Destroy Structure 264 | . 11 22 . . . 56 2 . 128 45 . Partial Spotted 15 | . . . . . . . . 15 . . . Lose Combat Pursuer 765 | . 15 30 . . . . 60 390 105 45 120 Influence Decreases 2332 | . 177 235 116 . . 266 177 314 286 728 33 Entered New Map 497 | . . 85 4 . . . 45 44 96 210 13 Time Decay 1331 | . 157 140 92 . . 226 102 130 110 374 . Lost Part 504 | . 20 10 20 . . 40 30 140 80 144 20 Squads Dispatched 16 | . 1 . . . . 3 2 2 3 5 . Investigation 6 | . 1 . . . . 2 1 . . 2 . Extermination 8 | . . . . . . 1 1 1 2 3 . Reinforcement 2 | . . . . . . . . 1 1 . . Assault . | . . . . . . . . . . . . Garrison . | . . . . . . . . . . . . Intercept . | . . . . . . . . . . . . Searches Triggered . | . . . . . . . . . . . . Construction Impeded . | . . . . . . . . . . . . Haulers Reinforced . | . . . . . . . . . . . . Active Scanning Responses . | . . . . . . . . . . . . Cargo Convoy Interrupts . | . . . . . . . . . . . . Stealth | -11 -10 -10 -10 -7 -7 -5 -4 -3 -3 -2 -2 --------- Run | Yrd Mat Min Sub Rec Scr Fac Fac Res Tes Res Gar Distress Signals 4 | . 2 . . . . . 1 . 1 . . Communications Jammed . | . . . . . . . . . . . . Distress Signals . | . . . . . . . . . . . . Times Spotted 155 | . 17 7 15 . . 16 9 34 22 19 16 Peak Tracking Total 17 | . 4 2 7 . . 6 5 17 16 9 14 Tactical Retreats 18 | . 1 1 1 . . . 1 7 3 1 3 Traps | -11 -10 -10 -10 -7 -7 -5 -4 -3 -3 -2 -2 ------- Run | Yrd Mat Min Sub Rec Scr Fac Fac Res Tes Res Gar Traps Triggered 7 | . . . . . . 1 . 3 2 . 1 Indirectly . | . . . . . . . . . . . . Trap Hack Attempts . | . . . . . . . . . . . . Triggered . | . . . . . . . . . . . . Disarmed . | . . . . . . . . . . . . Reprogrammed 6 | . . . . . . 6 . . . . . Reused 1 | . . . . . . 1 . . . . . Traps Extracted . | . . . . . . . . . . . . Installed 2 | . . . . . . 2 . . . . . Triggered 1 | . . . . . . 1 . . . . . Most Traps Carried 2 | . . . . . 2 2 . . . . . Machines | -11 -10 -10 -10 -7 -7 -5 -4 -3 -3 -2 -2 ---------- Run | Yrd Mat Min Sub Rec Scr Fac Fac Res Tes Res Gar Machines Disabled 20 | . . . . . . 7 2 . 10 1 . Max in Single Turn 7 | . . . . . . 7 1 . 4 1 . Machines Repaired . | . . . . . . . . . . . . Machines Dismantled . | . . . . . . . . . . . . Machines Sabotaged . | . . . . . . . . . . . . Overloaded Fab Kills . | . . . . . . . . . . . . Hacking | -11 -10 -10 -10 -7 -7 -5 -4 -3 -3 -2 -2 --------- Run | Yrd Mat Min Sub Rec Scr Fac Fac Res Tes Res Gar Machines Accessed 20 | . 5 . . . 1 3 3 2 1 4 1 Terminals 14 | . 5 . . . . 2 2 1 . 3 1 Fabricators . | . . . . . . . . . . . . Repair Stations 1 | . . . . . . . . 1 . . . Recycling Units 2 | . . . . . . 1 1 . . . . Scanalyzers 1 | . . . . . . . . . 1 . . Garrison Access 1 | . . . . . . . . . . 1 . Total Hacks 74 | . 17 . . . 6 11 15 5 2 15 3 Successful 34 | . 9 . . . 6 7 6 2 1 3 . Failed 40 | . 8 . . . . 4 9 3 1 12 3 Catastrophic 4 | . 1 . . . . . . . . 2 1 Database Lockouts . | . . . . . . . . . . . . Manual 41 | . 14 . . . . 7 7 3 . 10 . Terminals 62 | . 17 . . . . 10 14 4 . 14 3 Fabricators . | . . . . . . . . . . . . Repair Stations 1 | . . . . . . . . 1 . . . Recycling Units 2 | . . . . . . 1 1 . . . . Scanalyzers 2 | . . . . . . . . . 2 . . Garrison Access 1 | . . . . . . . . . . 1 . Terminal Hacks 24 | . 7 . . . 6 5 4 1 . 1 . Robot Analysis 8 | . 1 . . . 6 . 1 . . . . Prototype ID Bank 2 | . 2 . . . . . . . . . . Branch Access Points 2 | . . . . . . 1 . 1 . . . Emergency Access Points 1 | . . . . . . . 1 . . . . Terminal Index 3 | . 2 . . . . . 1 . . . . Alert Level 2 | . . . . . . 1 . . . 1 . Locate Traps 2 | . 1 . . . . 1 . . . . . Reprogram Traps 1 | . . . . . . 1 . . . . . Zone Layout 3 | . 1 . . . . 1 1 . . . . Fabricator Hacks . | . . . . . . . . . . . . Repair Station Hacks 1 | . . . . . . . . 1 . . . Refit 1 | . . . . . . . . 1 . . . Recycling Unit Hacks . | . . . . . . . . . . . . Scanalyzer 1 | . . . . . . . . . 1 . . Retrieve Study 1 | . . . . . . . . . 1 . . Garrison Access Hacks 1 | . . . . . . . . . . 1 . Unlock Access 1 | . . . . . . . . . . 1 . Unauthorized Hacks 7 | . 2 . . . . 2 2 . . 1 . Terminals 5 | . 2 . . . . 1 1 . . 1 . Botnet 5 | . 2 . . . . 1 1 . . 1 . Fabricators . | . . . . . . . . . . . . Repair Stations . | . . . . . . . . . . . . Recycling Units 2 | . . . . . . 1 1 . . . . Fedlink 2 | . . . . . . 1 1 . . . . Scanalyzers . | . . . . . . . . . . . . Garrison Access . | . . . . . . . . . . . . Data Cores Recovered 1 | . . . . . . 1 . . . . . Used . | . . . . . . . . . . . . Hacking Detections 16 | . 5 . . . . 2 2 1 1 4 1 Full Trace Events 5 | . 2 . . . . . . . . 2 1 Feedback Events 1 | . . . . . . . . . . 1 . Hackware Fried 1 | . . . . . . . . . . 1 . Feedback Blocked . | . . . . . . . . . . . . Robot Schematics Acquired . | . . . . . . . . . . . . Robots Built . | . . . . . . . . . . . . Authchips . | . . . . . . . . . . . . Time . | . . . . . . . . . . . . Total Robot Build Rating . | . . . . . . . . . . . . Part Schematics Acquired . | . . . . . . . . . . . . Parts Built . | . . . . . . . . . . . . Authchips . | . . . . . . . . . . . . Time . | . . . . . . . . . . . . Total Part Build Rating . | . . . . . . . . . . . . Part Studies Acquired 1 | . . . . . . . . . 1 . . Parts Repaired . | . . . . . . . . . . . . Time . | . . . . . . . . . . . . Parts Recycled . | . . . . . . . . . . . . Recycled Matter . | . . . . . . . . . . . . Retrieved Matter . | . . . . . . . . . . . . Retrieved Components . | . . . . . . . . . . . . Parts Scanalyzed . | . . . . . . . . . . . . Part Schematics Acquired . | . . . . . . . . . . . . Parts Damaged . | . . . . . . . . . . . . Bothacking | -11 -10 -10 -10 -7 -7 -5 -4 -3 -3 -2 -2 ------------ Run | Yrd Mat Min Sub Rec Scr Fac Fac Res Tes Res Gar Used RIF Installer . | . . . . . . . . . . . . Robots Hacked . | . . . . . . . . . . . . Non-combat . | . . . . . . . . . . . . Combat . | . . . . . . . . . . . . Robot Hacks Applied . | . . . . . . . . . . . . Relay Couplers Released . | . . . . . . . . . . . . Fabnet Peak Effective % . | . . . . . . . . . . . . Robots Rewired . | . . . . . . . . . . . . Allies Hacked . | . . . . . . . . . . . . Hacks Repelled . | . . . . . . . . . . . . Allies | -11 -10 -10 -10 -7 -7 -5 -4 -3 -3 -2 -2 -------- Run | Yrd Mat Min Sub Rec Scr Fac Fac Res Tes Res Gar Total Allies . | . . . . . . . . . . . . Largest Group . | . . . . . . . . . . . . Highest-Rated Group . | . . . . . . . . . . . . Highest-Rated Ally . | . . . . . . . . . . . . Total Orders . | . . . . . . . . . . . . Ally Attacks . | . . . . . . . . . . . . Total Damage . | . . . . . . . . . . . . Kills . | . . . . . . . . . . . . Allies Corrupted . | . . . . . . . . . . . . Allies Melted . | . . . . . . . . . . . . Intel | -11 -10 -10 -10 -7 -7 -5 -4 -3 -3 -2 -2 ------- Run | Yrd Mat Min Sub Rec Scr Fac Fac Res Tes Res Gar Active Infowar (turns) 2361 | . . . . . 224 539 273 273 237 815 . Sensors 1035 | . . . . . . . . 145 75 815 . Structural 810 | . . . . . 224 277 160 149 . . . Machine Analysis 1973 | . . . . . . 535 273 273 237 655 . Robot Analysis Total 8 | . 1 . . . 6 . 1 . . . . Derelict Logs Recovered 1 | . . 1 . . . . . . . . . Drone Launches . | . . . . . . . . . . . . Drone Recoveries . | . . . . . . . . . . . . Exploration | -11 -10 -10 -10 -7 -7 -5 -4 -3 -3 -2 -2 ------------- Run | Yrd Mat Min Sub Rec Scr Fac Fac Res Tes Res Gar Turns Passed 4145 | . 439 296 423 27 606 539 273 273 237 901 131 Spaces Moved 3986 | 1 296 228 293 34 655 454 371 620 353 560 121 Core 157 | . . . . . . . . 55 . 22 80 Treads 426 | . . . 49 . . . . . . 375 2 Legs 977 | 1 296 228 180 . . 146 116 . . 10 . Wheels 1141 | . . . 64 34 655 308 . . . 80 . Hover . | . . . . . . . . . . . . Flight 1285 | . . . . . . . 255 565 353 73 39 Fastest Speed 31 | 120 120 120 80 80 80 83 31 31 33 35 50 Average Speed 85 | 120 120 120 117 80 89 105 59 34 34 125 75 Slowest Speed 170 | 120 120 120 160 80 95 120 170 50 39 145 160 Overloaded Moves . | . . . . . . . . . . . . Propulsion Burnouts . | . . . . . . . . . . . . Robots Hopped 33 | . . . . . . . 2 22 9 . . Potential Cave-ins . | . . . . . . . . . . . . Cave-ins Triggered . | . . . . . . . . . . . . Exploration Rate (%) 29 | 1 62 63 21 7 53 13 12 18 54 14 36 Regions Visited 11 Branch Regions 5 Pre-discovered Areas 1 | . . . . . . . 1 . . . . Known Exits Taken 5 | . 1 1 . . . . . 1 1 1 . Unknown Exits Taken 6 | 1 . . 1 1 1 1 1 . . . . Scrap Searched 2 | . . 1 . . 1 . . . . . . Spaces Dug 8 | . . . . . . . 1 . 7 . . Terrain Destroyed 207 | . 12 27 32 . . 32 1 . 88 15 . Melee . | . . . . . . . . . . . . Projectile 23 | . . . . . . 4 1 . 3 15 . AOE 184 | . 12 27 32 . . 28 . . 85 . . Terrain Rammed . | . . . . . . . . . . . . Walls Destroyed . | . . . . . . . . . . . . Machines Disabled . | . . . . . . . . . . . . Actions | -11 -10 -10 -10 -7 -7 -5 -4 -3 -3 -2 -2 --------- Run | Yrd Mat Min Sub Rec Scr Fac Fac Res Tes Res Gar Total 4438 | . 337 238 333 33 675 491 417 652 425 695 142 Wait 122 | . 3 . . . 5 8 18 8 28 52 . Move 3912 | . 295 227 292 33 654 453 367 578 334 559 120 Hop 29 | . . . . . . . 1 19 9 . . Pick Up 37 | . 1 1 4 . 7 4 6 4 6 4 . Fast Attach 46 | . 1 1 2 . 2 2 7 8 4 19 . Attach 38 | . 1 1 4 . 1 5 4 5 8 9 . Detach 19 | . . . 1 . 1 . 4 3 3 7 . Swap 31 | . 4 2 11 . 1 3 . 1 6 3 . Drop 28 | . 1 . . . 4 3 6 3 3 7 1 Fire 113 | . 22 5 19 . . 11 4 . 18 34 . Melee 11 | . . . . . . . . . . . 11 Ram 3 | . . . . . . . . 3 . . . Kick 10 | . 9 1 . . . . . . . . . Crush 2 | . . . . . . . . . . 1 1 Escape Stasis 35 | . . . . . . . . 20 6 . 9 Rewire . | . . . . . . . . . . . . Trap 2 | . . . . . . 2 . . . . . Miscellaneous . | . . . . . . . . . . . . Route ------- -11/Scrapyard -10/Materials (discovered 3 exits: [*Mat] / *Min x2) -10/Mines -10/Subcaves -7/Recycling -7/Scraptown -5/Factory (discovered 3 exits: *Fac / Upp x2) -4/Factory -3/Research (discovered 2 exits: *Tes x2) -3/Testing -2/Research (discovered 2 exits: *Acc / Gar) -2/Garrison (discovered 1 exit: *Res) History --------- Turn | Location | Event 1 | -11/Scrapyard | Discovered new exit (range 0) 1 | -11/Scrapyard | Entered Materials 153 | -10/Materials | Discovered new exit (range 14) 314 | -10/Materials | Build established: Mutant 347 | -10/Materials | Discovered new exit (range 15) 435 | -10/Materials | Discovered new exit (range 16) 439 | -10/Materials | Identified exit to Mines 440 | -10/Materials | Entered Mines 545 | -10/Mines | Identified exit to Subcaves 585 | -10/Mines | Assembled infested the area 687 | -10/Mines | Found DCF Scrap (15 items) 736 | -10/Mines | Entered Subcaves 737 | -10/Subcaves | Approached by a straggling Scientist 744 | -10/Subcaves | Core integrity fell below 50% 782 | -10/Subcaves | Shifting Twisted Machinery released Sub. Monowheel 795 | -10/Subcaves | Shifting Twisted Machinery released Riot Gun 852 | -10/Subcaves | Shifting Twisted Machinery released Sub. Power Source 854 | -10/Subcaves | Shifting Twisted Machinery released Sub. Laser 1111 | -10/Subcaves | Lost 4 parts (1p3w) 1154 | -10/Subcaves | Discovered new exit (range 8) 1155 | -10/Subcaves | Core integrity fell below 20% 1159 | -10/Subcaves | Entered Recycling 1168 | -7/Recycling | Scanned before Scraplab entrance 1179 | -7/Recycling | Entered Scraplab 1185 | -7/Recycling | Discovered new exit (range 2) 1186 | -7/Recycling | Entered Scraptown 1231 | -7/Scraptown | Heard Great Nut preacher, LISTEN AND RECITE! 1306 | -7/Scraptown | Visited UFD Registry 1306 | -7/Scraptown | Registered with UFD as "Beamslicer" 1319 | -7/Scraptown | Visited TADAMA 1346 | -7/Scraptown | Visited Cyclists 1428 | -7/Scraptown | Visited A0-MCA Data Center 1437 | -7/Scraptown | Given a B rating by A0-MCA 1439 | -7/Scraptown | Found A0-MCA's Component Scanner 1476 | -7/Scraptown | Visited Curators Association 1518 | -7/Scraptown | Visited Cartography Club 1534 | -7/Scraptown | Found Surveybot 17 Chip 1568 | -7/Scraptown | Found Deep Structural Scanner 1601 | -7/Scraptown | Visited Analyses Database 1650 | -7/Scraptown | Visited Science Guys 1742 | -7/Scraptown | Met Optimus 1742 | -7/Scraptown | Accepted into 0bPrime 1783 | -7/Scraptown | Discovered new exit (range 12) 1792 | -7/Scraptown | Entered Factory 1792 | -5/Factory | Evolved 10 slots: Power x1, Propulsion x4, Utility x4, Weapon x1 1975 | -5/Factory | Identified exit to Upper Caves 2104 | -5/Factory | Discovered new exit (range 8) 2218 | -5/Factory | Loaded intel: 8 recycling unit locations 2331 | -5/Factory | Entered another Factory area 2331 | -4/Factory | Evolved 2 slots: Propulsion x1, Utility x1 2402 | -4/Factory | Build established: Hacker-Mutant 2546 | -4/Factory | Loaded intel: 8 recycling unit locations 2546 | -4/Factory | Learned location of Protoforge (-2) 2585 | -4/Factory | Discovered new exit (range 15) 2604 | -4/Factory | Entered Research 2604 | -3/Research | Evolved 2 slots: Utility x2 2786 | -3/Research | Identified exit to Testing 2848 | -3/Research | Lost 12 parts (1p5n6u) 2872 | -3/Research | Found Exp. Signal Interpreter 2877 | -3/Research | Entered Testing 2907 | -3/Testing | Found Potential Cannon 2941 | -3/Testing | Found Disintegrator 2992 | -3/Testing | Found Portable AFG 3016 | -3/Testing | Spotted Striker 3018 | -3/Testing | Core integrity fell below 50% 3098 | -3/Testing | Core integrity fell below 20% 3112 | -3/Testing | Discovered new exit (range 5) 3114 | -3/Testing | Identified exit to Research 3114 | -3/Testing | Entered Research 3114 | -2/Research | Evolved 2 slots: Utility x2 3140 | -2/Research | Lost 6 parts (1p3n2w) 3243 | -2/Research | Discovered new exit (range 16) 3334 | -2/Research | Identified exit to Access 3602 | -2/Research | Build established: Scavenger-Skirmisher 3883 | -2/Research | Hacking Suite fried by hacking feedback 3955 | -2/Research | System corruption reached 10% 3999 | -2/Research | Lost 19 parts (2p6n8u3w) 4003 | -2/Research | Identified exit to Garrison 4015 | -2/Research | Entered Garrison 4016 | -2/Garrison | Core integrity fell below 50% 4057 | -2/Garrison | Spotted B-90 Cyclops 4065 | -2/Garrison | Triggered checkpoint 4067 | -2/Garrison | Triggered checkpoint 4091 | -2/Garrison | Discovered new exit (range 13) 4096 | -2/Garrison | Identified exit to Research 4097 | -2/Garrison | Attempted to access garrison exit controls, blocked by remote lockdown 4111 | -2/Garrison | Triggered checkpoint 4146 | -2/Garrison | Self-destructed Last Messages --------------- 04115_ Field strength at 5. 04116_ Stasis field depleted. 04117_ Y-72 Warden Med. Treads severed. 04118_ %Y G3R8E5DW7WROXW6HXVRGWX5ICACSMGDE1 04118_ Penetrated by Slug. 04119_ Y-72 Warden Med. Treads severed. 04120_ Slug penetrates Wall. 04121_ Critical hit (Burn: +37). 04123_ Penetrated by Slug. 04132_ Slug penetrates Wall. 04136_ System corrupted: Component data lost. 04137_ Slug penetrates Wall. 04138_ G-73 Enforcer Adv. Heat Sink severed. 04139_ Slug penetrates Wall. 04139_ Power Sword destroyed. 04139_ Penetrated by Slug. 04140_ Slug penetrates Wall. 04142_ Penetrated by Slug. 04143_ Slug penetrates Wall. 04144_ Slammed into G-73 Enforcer. Map ----- +----------------------------------------------------+ | | | ?????????????????????????????????????????????????? | | ?????????????????????????????????????????????????? | | ?????????????????????????????????????????????????? | | ?????????????????????????????????????????????????? | | ?????????????????????????????????????????????????? | | ?????????????????????????????????????????????????? | | ?????????????????????????????????????????????????? | | ?????????????????????????????????????????????????? | | ???????????????????#######???????????????????????? | | ???????????????????# #???????????????????????? | | ???????????????????# < #???????????????????????? | | ???????????????????# #???????????????????????? | | ???????????????????# ###???????????????????????? | | ???????????????????# #?????????????????????????? | | ???????????????????# #?????????????????????????? | | ???????????????????# #?????????????????????????? | | ???????????????????# #?????????????????????????? | | ???????????????????# #?????????????????????????? | | ???????????????????# #?????????????????????????? | | ???????????????????# #?????????????????????????? | | ???????????????????# #?????????????????????????? | | ???????????????????# #?????????????????????????? | | ???????????????????# #?????????????????????????? | | ???????????????????# #######???????????????????? | | ??????????????????## @g #???????????????????? | | ?????????????# + bYg #???????????????????? | | ??????????????????## #### #???????????????????? | | ???????????????????# #??# ###?????????????????? | | ???????????????????# #??# hbY#?????????????????? | | ???????????????????# #??# =#?????????????????? | | ???????????????????# #??# #?????????????????? | | ???????????????????# #??# ###?????????????????? | | ???????????????????# #??# #???????????????????? | | ???????????????????# #??# #???????????????????? | | ???????????????????# #??# #???????????????????? | | ???????????????????# #??# #???????????????????? | | ???????????????????# #??# ???????????????????? | | ???????????????????# #??# ???????????????????? | | ???????????????????# #??+ ???????????????????? | | ???????????????????# #??+ #???????????????????? | | ???????????????????# #??####???????????????????? | | ??????????????###??# #?????????????????????????? | | ####""""#######T#### #?????????????????????????? | | #?????????????????????????? | | #?????????????????????????? | | #?????????????????????????? | | ## ## ###########?????????????????????????? | | ## ## ###?????????????????????????????????? | | #?????????????????????????????????? | +----------------------------------------------------+ Best States ------------- Heat Dissipation 106 Energy Generation 37 Energy Capacity 2040 Matter Stores 300 Matter Capacity 300 Sight Range 16 Robot Scan Range 16 Terrain Scan Density 1210 Phase Shifting 5 Evasion (%) 75 Targeting Accuracy 5 Armor Integrity Analysis 30 Recoil Reduction 3 Particle Charging 25 Offensive Hacking 32 Defensive Hacking 14 Item Schematics ----------------- None Robot Schematics ------------------ None Fabricated ------------ Nothing Repaired ---------- Nothing Studied --------- Impulse Thruster Array | -3/Testing | Hacked Alien Tech Used ----------------- None Achievements -------------- Physics Hates This One Trick Wiki Contributor Challenges ------------ None Game ------ Seed EncryptedSubatomicInterface Manual? 0 Play Time 00:43:53 Cumulative 1208.0 hours Start 2025.10.26 @ 21:28:51 End 2025.10.28 @ 11:18:24 Sessions 7 Manual Loads 0 Difficulty Rogue Special Mode None Game No. 1487 Rogue 1203 Adventurer 124 Explorer 160 Win Type - Total 56 Types 42/0/8/4/1/0/0/1/0/0 Lore% 92 Gallery% 86 Achievement% 62 Wizard Run 0 Options --------- Layout 0 ASCII 0 Keyboard 1 Movement Numpad Keybinds 0 Fullscreen 2 Font 18/X11 Map View 76x50 Zoom Use 0% Tactical HUD 1 Map Filters NONE Filters NONE Steam 1 RUN: f5cf6d9e-8f97-43cb-a812-44d5ec59ebf5